{"text_format":"1","workbook":"xlsx","n_sheets":5,"sheets":["21","22","23","24","Matrice"],"not_rendered":{"charts":0,"images":0,"macros":1,"external_links":0,"defined_names":9,"comments":0,"pivot_tables":0},"unopened":[],"bounds":{"document_bytes":16777216,"sheet_cells":100000,"rows_first":2000,"rows_last":500,"rows_between":2000,"halvings":0,"cell_chars":16384,"cell_head_chars":4096},"cells_cut":0,"cells_raw":0,"read":"whole","date_system":"1900"}

{"sheet":"21","index":0,"n_rows":85,"n_cols":5,"rows_kept":85,"cut":false,"hidden":false,"merged":[]}
[]
[null,"Mercredi 21 juillet"]
[null,"Référence","Nbre palettes","Quantité (colis)","Traçabilité"]
[null,"CEA 250x12 ZR",2,{"$f":"IF(B4=\"\",\"\",C4*VLOOKUP(DétailsFacture[[#This Row],[Référence]],Matrice!A:B,2,FALSE))","v":256},16629102]
[null,"CEA 200x20 0,99€",12,{"$f":"IF(B5=\"\",\"\",C5*VLOOKUP(DétailsFacture[[#This Row],[Référence]],Matrice!A:B,2,FALSE))","v":1296},16629208]
[null,"CEA Panaché 250x12 PDP",1,{"$f":"IF(B6=\"\",\"\",C6*VLOOKUP(DétailsFacture[[#This Row],[Référence]],Matrice!A:B,2,FALSE))","v":128},16629105]
[null,"CEA 500x10 ZR",5,{"$f":"IF(B7=\"\",\"\",C7*VLOOKUP(DétailsFacture[[#This Row],[Référence]],Matrice!A:B,2,FALSE))","v":360},16629102]
[null,"CEA 1kg compléxé",4,{"$f":"IF(B8=\"\",\"\",C8*VLOOKUP(DétailsFacture[[#This Row],[Référence]],Matrice!A:B,2,FALSE))","v":1600},16629102]
[null,"CEA 1kg compléxé LIDL",2,{"$f":"IF(B9=\"\",\"\",C9*VLOOKUP(DétailsFacture[[#This Row],[Référence]],Matrice!A:B,2,FALSE))","v":960},16629202]
[null,"GRP RGL Extra 10kg 1/2 coupe",4,{"$f":"IF(B10=\"\",\"\",C10*VLOOKUP(DétailsFacture[[#This Row],[Référence]],Matrice!A:B,2,FALSE))","v":224},16629320]
[null,"GRP RGL Extra 10kg",12,{"$f":"IF(B11=\"\",\"\",C11*VLOOKUP(DétailsFacture[[#This Row],[Référence]],Matrice!A:B,2,FALSE))","v":672},16629320]
[null,"CER Mélangées 350x10 ZR 2€50",4,{"$f":"IF(B12=\"\",\"\",C12*VLOOKUP(DétailsFacture[[#This Row],[Référence]],Matrice!A:B,2,FALSE))","v":288},16629106]
[null,"CER Mélangées 1kg compléxé LIDL",3,{"$f":"IF(B13=\"\",\"\",C13*VLOOKUP(DétailsFacture[[#This Row],[Référence]],Matrice!A:B,2,FALSE))","v":1440},16629106]
[null,"CER Mélangées 1kg compléxé",2,{"$f":"IF(B14=\"\",\"\",C14*VLOOKUP(DétailsFacture[[#This Row],[Référence]],Matrice!A:B,2,FALSE))","v":800},16629106]
[null,"CER 4Kg Industrie 20-30 mm",1,{"$f":"IF(B15=\"\",\"\",C15*VLOOKUP(DétailsFacture[[#This Row],[Référence]],Matrice!A:B,2,FALSE))","v":144},16629301]
[null,null,null,{"$f":"IF(B16=\"\",\"\",C16*VLOOKUP(DétailsFacture[[#This Row],[Référence]],Matrice!A:B,2,FALSE))","v":""}]
[null,null,null,{"$f":"IF(B17=\"\",\"\",C17*VLOOKUP(DétailsFacture[[#This Row],[Référence]],Matrice!A:B,2,FALSE))","v":""}]
[null,null,null,{"$f":"IF(B18=\"\",\"\",C18*VLOOKUP(DétailsFacture[[#This Row],[Référence]],Matrice!A:B,2,FALSE))","v":""}]
[null,null,null,{"$f":"IF(B19=\"\",\"\",C19*VLOOKUP(DétailsFacture[[#This Row],[Référence]],Matrice!A:B,2,FALSE))","v":""}]
[null,null,null,{"$f":"IF(B20=\"\",\"\",C20*VLOOKUP(DétailsFacture[[#This Row],[Référence]],Matrice!A:B,2,FALSE))","v":""}]
[null,null,null,{"$f":"IF(B21=\"\",\"\",C21*VLOOKUP(DétailsFacture[[#This Row],[Référence]],Matrice!A:B,2,FALSE))","v":""}]
[null,null,null,{"$f":"IF(B22=\"\",\"\",C22*VLOOKUP(DétailsFacture[[#This Row],[Référence]],Matrice!A:B,2,FALSE))","v":""}]
[null,null,null,{"$f":"IF(B23=\"\",\"\",C23*VLOOKUP(DétailsFacture[[#This Row],[Référence]],Matrice!A:B,2,FALSE))","v":""}]
[null,null,null,{"$f":"IF(B24=\"\",\"\",C24*VLOOKUP(DétailsFacture[[#This Row],[Référence]],Matrice!A:B,2,FALSE))","v":""}]
[null,null,null,{"$f":"IF(B25=\"\",\"\",C25*VLOOKUP(DétailsFacture[[#This Row],[Référence]],Matrice!A:B,2,FALSE))","v":""}]
[null,null,null,{"$f":"IF(B26=\"\",\"\",C26*VLOOKUP(DétailsFacture[[#This Row],[Référence]],Matrice!A:B,2,FALSE))","v":""}]
[null,null,null,{"$f":"IF(B27=\"\",\"\",C27*VLOOKUP(DétailsFacture[[#This Row],[Référence]],Matrice!A:B,2,FALSE))","v":""}]
[null,null,null,{"$f":"IF(B28=\"\",\"\",C28*VLOOKUP(DétailsFacture[[#This Row],[Référence]],Matrice!A:B,2,FALSE))","v":""}]
[null,null,null,{"$f":"IF(B29=\"\",\"\",C29*VLOOKUP(DétailsFacture[[#This Row],[Référence]],Matrice!A:B,2,FALSE))","v":""}]
[null,null,null,{"$f":"IF(B30=\"\",\"\",C30*VLOOKUP(DétailsFacture[[#This Row],[Référence]],Matrice!A:B,2,FALSE))","v":""}]
[null,null,null,{"$f":"IF(B31=\"\",\"\",C31*VLOOKUP(DétailsFacture[[#This Row],[Référence]],Matrice!A:B,2,FALSE))","v":""}]
[null,null,null,{"$f":"IF(B32=\"\",\"\",C32*VLOOKUP(DétailsFacture[[#This Row],[Référence]],Matrice!A:B,2,FALSE))","v":""}]
[null,null,null,{"$f":"IF(B33=\"\",\"\",C33*VLOOKUP(DétailsFacture[[#This Row],[Référence]],Matrice!A:B,2,FALSE))","v":""}]
[null,null,null,{"$f":"IF(B34=\"\",\"\",C34*VLOOKUP(DétailsFacture[[#This Row],[Référence]],Matrice!A:B,2,FALSE))","v":""}]
[null,null,null,{"$f":"IF(B35=\"\",\"\",C35*VLOOKUP(DétailsFacture[[#This Row],[Référence]],Matrice!A:B,2,FALSE))","v":""}]
[null,null,null,{"$f":"IF(B36=\"\",\"\",C36*VLOOKUP(DétailsFacture[[#This Row],[Référence]],Matrice!A:B,2,FALSE))","v":""}]
[null,null,null,{"$f":"IF(B37=\"\",\"\",C37*VLOOKUP(DétailsFacture[[#This Row],[Référence]],Matrice!A:B,2,FALSE))","v":""}]
[null,null,null,{"$f":"IF(B38=\"\",\"\",C38*VLOOKUP(DétailsFacture[[#This Row],[Référence]],Matrice!A:B,2,FALSE))","v":""}]
[null,null,null,{"$f":"IF(B39=\"\",\"\",C39*VLOOKUP(DétailsFacture[[#This Row],[Référence]],Matrice!A:B,2,FALSE))","v":""}]
[null,null,null,{"$f":"IF(B40=\"\",\"\",C40*VLOOKUP(DétailsFacture[[#This Row],[Référence]],Matrice!A:B,2,FALSE))","v":""}]
[null,null,null,{"$f":"IF(B41=\"\",\"\",C41*VLOOKUP(DétailsFacture[[#This Row],[Référence]],Matrice!A:B,2,FALSE))","v":""}]
[null,null,null,{"$f":"IF(B42=\"\",\"\",C42*VLOOKUP(DétailsFacture[[#This Row],[Référence]],Matrice!A:B,2,FALSE))","v":""}]
[null,null,null,{"$f":"IF(B43=\"\",\"\",C43*VLOOKUP(DétailsFacture[[#This Row],[Référence]],Matrice!A:B,2,FALSE))","v":""}]
[null,null,null,{"$f":"IF(B44=\"\",\"\",C44*VLOOKUP(DétailsFacture[[#This Row],[Référence]],Matrice!A:B,2,FALSE))","v":""}]
[null,null,null,{"$f":"IF(B45=\"\",\"\",C45*VLOOKUP(DétailsFacture[[#This Row],[Référence]],Matrice!A:B,2,FALSE))","v":""}]
[null,null,null,{"$f":"IF(B46=\"\",\"\",C46*VLOOKUP(DétailsFacture[[#This Row],[Référence]],Matrice!A:B,2,FALSE))","v":""}]
[null,null,null,{"$f":"IF(B47=\"\",\"\",C47*VLOOKUP(DétailsFacture[[#This Row],[Référence]],Matrice!A:B,2,FALSE))","v":""}]
[null,null,null,{"$f":"IF(B48=\"\",\"\",C48*VLOOKUP(DétailsFacture[[#This Row],[Référence]],Matrice!A:B,2,FALSE))","v":""}]
[null,null,null,{"$f":"IF(B49=\"\",\"\",C49*VLOOKUP(DétailsFacture[[#This Row],[Référence]],Matrice!A:B,2,FALSE))","v":""}]
[null,null,null,{"$f":"IF(B50=\"\",\"\",C50*VLOOKUP(DétailsFacture[[#This Row],[Référence]],Matrice!A:B,2,FALSE))","v":""}]
[null,null,null,{"$f":"IF(B51=\"\",\"\",C51*VLOOKUP(DétailsFacture[[#This Row],[Référence]],Matrice!A:B,2,FALSE))","v":""}]
[null,null,null,{"$f":"IF(B52=\"\",\"\",C52*VLOOKUP(DétailsFacture[[#This Row],[Référence]],Matrice!A:B,2,FALSE))","v":""}]
[null,null,null,{"$f":"IF(B53=\"\",\"\",C53*VLOOKUP(DétailsFacture[[#This Row],[Référence]],Matrice!A:B,2,FALSE))","v":""}]
[null,null,null,{"$f":"IF(B54=\"\",\"\",C54*VLOOKUP(DétailsFacture[[#This Row],[Référence]],Matrice!A:B,2,FALSE))","v":""}]
[null,null,null,{"$f":"IF(B55=\"\",\"\",C55*VLOOKUP(DétailsFacture[[#This Row],[Référence]],Matrice!A:B,2,FALSE))","v":""}]
[null,null,null,{"$f":"IF(B56=\"\",\"\",C56*VLOOKUP(DétailsFacture[[#This Row],[Référence]],Matrice!A:B,2,FALSE))","v":""}]
[null,null,null,{"$f":"IF(B57=\"\",\"\",C57*VLOOKUP(DétailsFacture[[#This Row],[Référence]],Matrice!A:B,2,FALSE))","v":""}]
[null,null,null,{"$f":"IF(B58=\"\",\"\",C58*VLOOKUP(DétailsFacture[[#This Row],[Référence]],Matrice!A:B,2,FALSE))","v":""}]
[null,null,null,{"$f":"IF(B59=\"\",\"\",C59*VLOOKUP(DétailsFacture[[#This Row],[Référence]],Matrice!A:B,2,FALSE))","v":""}]
[null,null,null,{"$f":"IF(B60=\"\",\"\",C60*VLOOKUP(DétailsFacture[[#This Row],[Référence]],Matrice!A:B,2,FALSE))","v":""}]
[null,null,null,{"$f":"IF(B61=\"\",\"\",C61*VLOOKUP(DétailsFacture[[#This Row],[Référence]],Matrice!A:B,2,FALSE))","v":""}]
[null,null,null,{"$f":"IF(B62=\"\",\"\",C62*VLOOKUP(DétailsFacture[[#This Row],[Référence]],Matrice!A:B,2,FALSE))","v":""}]
[null,null,null,{"$f":"IF(B63=\"\",\"\",C63*VLOOKUP(DétailsFacture[[#This Row],[Référence]],Matrice!A:B,2,FALSE))","v":""}]
[null,null,null,{"$f":"IF(B64=\"\",\"\",C64*VLOOKUP(DétailsFacture[[#This Row],[Référence]],Matrice!A:B,2,FALSE))","v":""}]
[null,null,null,{"$f":"IF(B65=\"\",\"\",C65*VLOOKUP(DétailsFacture[[#This Row],[Référence]],Matrice!A:B,2,FALSE))","v":""}]
[null,null,null,{"$f":"IF(B66=\"\",\"\",C66*VLOOKUP(DétailsFacture[[#This Row],[Référence]],Matrice!A:B,2,FALSE))","v":""}]
[null,null,null,{"$f":"IF(B67=\"\",\"\",C67*VLOOKUP(DétailsFacture[[#This Row],[Référence]],Matrice!A:B,2,FALSE))","v":""}]
[null,null,null,{"$f":"IF(B68=\"\",\"\",C68*VLOOKUP(DétailsFacture[[#This Row],[Référence]],Matrice!A:B,2,FALSE))","v":""}]
[null,null,null,{"$f":"IF(B69=\"\",\"\",C69*VLOOKUP(DétailsFacture[[#This Row],[Référence]],Matrice!A:B,2,FALSE))","v":""}]
[null,null,null,{"$f":"IF(B70=\"\",\"\",C70*VLOOKUP(DétailsFacture[[#This Row],[Référence]],Matrice!A:B,2,FALSE))","v":""}]
[null,null,null,{"$f":"IF(B71=\"\",\"\",C71*VLOOKUP(DétailsFacture[[#This Row],[Référence]],Matrice!A:B,2,FALSE))","v":""}]
[null,null,null,{"$f":"IF(B72=\"\",\"\",C72*VLOOKUP(DétailsFacture[[#This Row],[Référence]],Matrice!A:B,2,FALSE))","v":""}]
[null,null,null,{"$f":"IF(B73=\"\",\"\",C73*VLOOKUP(DétailsFacture[[#This Row],[Référence]],Matrice!A:B,2,FALSE))","v":""}]
[null,null,null,{"$f":"IF(B74=\"\",\"\",C74*VLOOKUP(DétailsFacture[[#This Row],[Référence]],Matrice!A:B,2,FALSE))","v":""}]
[null,null,null,{"$f":"IF(B75=\"\",\"\",C75*VLOOKUP(DétailsFacture[[#This Row],[Référence]],Matrice!A:B,2,FALSE))","v":""}]
[null,null,null,{"$f":"IF(B76=\"\",\"\",C76*VLOOKUP(DétailsFacture[[#This Row],[Référence]],Matrice!A:B,2,FALSE))","v":""}]
[null,null,null,{"$f":"IF(B77=\"\",\"\",C77*VLOOKUP(DétailsFacture[[#This Row],[Référence]],Matrice!A:B,2,FALSE))","v":""}]
[null,null,null,{"$f":"IF(B78=\"\",\"\",C78*VLOOKUP(DétailsFacture[[#This Row],[Référence]],Matrice!A:B,2,FALSE))","v":""}]
[null,null,null,{"$f":"IF(B79=\"\",\"\",C79*VLOOKUP(DétailsFacture[[#This Row],[Référence]],Matrice!A:B,2,FALSE))","v":""}]
[null,null,null,{"$f":"IF(B80=\"\",\"\",C80*VLOOKUP(DétailsFacture[[#This Row],[Référence]],Matrice!A:B,2,FALSE))","v":""}]
[null,null,null,{"$f":"IF(B81=\"\",\"\",C81*VLOOKUP(DétailsFacture[[#This Row],[Référence]],Matrice!A:B,2,FALSE))","v":""}]
[null,null,null,{"$f":"IF(B82=\"\",\"\",C82*VLOOKUP(DétailsFacture[[#This Row],[Référence]],Matrice!A:B,2,FALSE))","v":""}]
[null,null,null,{"$f":"IF(B83=\"\",\"\",C83*VLOOKUP(DétailsFacture[[#This Row],[Référence]],Matrice!A:B,2,FALSE))","v":""}]
[null,null,null,{"$f":"IF(B84=\"\",\"\",C84*VLOOKUP(DétailsFacture[[#This Row],[Référence]],Matrice!A:B,2,FALSE))","v":""}]
[null,null,null,{"$f":"IF(B85=\"\",\"\",C85*VLOOKUP(DétailsFacture[[#This Row],[Référence]],Matrice!A:B,2,FALSE))","v":""}]

{"sheet":"22","index":1,"n_rows":85,"n_cols":5,"rows_kept":85,"cut":false,"hidden":false,"merged":[]}
[]
[null,"Jeudi 22 juillet"]
[null,"Référence","Nbre palettes","Quantité (colis)","Traçabilité"]
[null,"CEA 250x12 ZR",2,{"$f":"IF(B4=\"\",\"\",C4*VLOOKUP(DétailsFacture6[[#This Row],[Référence]],Matrice!A:B,2,FALSE))","v":256},16629102]
[null,"CEA 200x20 0,99€",12,{"$f":"IF(B5=\"\",\"\",C5*VLOOKUP(DétailsFacture6[[#This Row],[Référence]],Matrice!A:B,2,FALSE))","v":1296},16629208]
[null,"CEA Panaché 250x12 PDP",1,{"$f":"IF(B6=\"\",\"\",C6*VLOOKUP(DétailsFacture6[[#This Row],[Référence]],Matrice!A:B,2,FALSE))","v":128},16629105]
[null,"CEA 500x10 ZR",5,{"$f":"IF(B7=\"\",\"\",C7*VLOOKUP(DétailsFacture6[[#This Row],[Référence]],Matrice!A:B,2,FALSE))","v":360},16629102]
[null,"CEA 1kg compléxé",4,{"$f":"IF(B8=\"\",\"\",C8*VLOOKUP(DétailsFacture6[[#This Row],[Référence]],Matrice!A:B,2,FALSE))","v":1600},16629102]
[null,"CEA 1kg compléxé LIDL",2,{"$f":"IF(B9=\"\",\"\",C9*VLOOKUP(DétailsFacture6[[#This Row],[Référence]],Matrice!A:B,2,FALSE))","v":960},16629202]
[null,"GRP RGL Extra 10kg 1/2 coupe",4,{"$f":"IF(B10=\"\",\"\",C10*VLOOKUP(DétailsFacture6[[#This Row],[Référence]],Matrice!A:B,2,FALSE))","v":224},16629320]
[null,"GRP RGL Extra 10kg",12,{"$f":"IF(B11=\"\",\"\",C11*VLOOKUP(DétailsFacture6[[#This Row],[Référence]],Matrice!A:B,2,FALSE))","v":672},16629320]
[null,"CER Mélangées 350x10 ZR 2€50",4,{"$f":"IF(B12=\"\",\"\",C12*VLOOKUP(DétailsFacture6[[#This Row],[Référence]],Matrice!A:B,2,FALSE))","v":288},16629106]
[null,"CER Mélangées 1kg compléxé LIDL",3,{"$f":"IF(B13=\"\",\"\",C13*VLOOKUP(DétailsFacture6[[#This Row],[Référence]],Matrice!A:B,2,FALSE))","v":1440},16629106]
[null,"CER Mélangées 1kg compléxé",2,{"$f":"IF(B14=\"\",\"\",C14*VLOOKUP(DétailsFacture6[[#This Row],[Référence]],Matrice!A:B,2,FALSE))","v":800},16629106]
[null,"CER 4Kg Industrie 20-30 mm",1,{"$f":"IF(B15=\"\",\"\",C15*VLOOKUP(DétailsFacture6[[#This Row],[Référence]],Matrice!A:B,2,FALSE))","v":144},16629301]
[null,null,null,{"$f":"IF(B16=\"\",\"\",C16*VLOOKUP(DétailsFacture6[[#This Row],[Référence]],Matrice!A:B,2,FALSE))","v":""}]
[null,null,null,{"$f":"IF(B17=\"\",\"\",C17*VLOOKUP(DétailsFacture6[[#This Row],[Référence]],Matrice!A:B,2,FALSE))","v":""}]
[null,null,null,{"$f":"IF(B18=\"\",\"\",C18*VLOOKUP(DétailsFacture6[[#This Row],[Référence]],Matrice!A:B,2,FALSE))","v":""}]
[null,null,null,{"$f":"IF(B19=\"\",\"\",C19*VLOOKUP(DétailsFacture6[[#This Row],[Référence]],Matrice!A:B,2,FALSE))","v":""}]
[null,null,null,{"$f":"IF(B20=\"\",\"\",C20*VLOOKUP(DétailsFacture6[[#This Row],[Référence]],Matrice!A:B,2,FALSE))","v":""}]
[null,null,null,{"$f":"IF(B21=\"\",\"\",C21*VLOOKUP(DétailsFacture6[[#This Row],[Référence]],Matrice!A:B,2,FALSE))","v":""}]
[null,null,null,{"$f":"IF(B22=\"\",\"\",C22*VLOOKUP(DétailsFacture6[[#This Row],[Référence]],Matrice!A:B,2,FALSE))","v":""}]
[null,null,null,{"$f":"IF(B23=\"\",\"\",C23*VLOOKUP(DétailsFacture6[[#This Row],[Référence]],Matrice!A:B,2,FALSE))","v":""}]
[null,null,null,{"$f":"IF(B24=\"\",\"\",C24*VLOOKUP(DétailsFacture6[[#This Row],[Référence]],Matrice!A:B,2,FALSE))","v":""}]
[null,null,null,{"$f":"IF(B25=\"\",\"\",C25*VLOOKUP(DétailsFacture6[[#This Row],[Référence]],Matrice!A:B,2,FALSE))","v":""}]
[null,null,null,{"$f":"IF(B26=\"\",\"\",C26*VLOOKUP(DétailsFacture6[[#This Row],[Référence]],Matrice!A:B,2,FALSE))","v":""}]
[null,null,null,{"$f":"IF(B27=\"\",\"\",C27*VLOOKUP(DétailsFacture6[[#This Row],[Référence]],Matrice!A:B,2,FALSE))","v":""}]
[null,null,null,{"$f":"IF(B28=\"\",\"\",C28*VLOOKUP(DétailsFacture6[[#This Row],[Référence]],Matrice!A:B,2,FALSE))","v":""}]
[null,null,null,{"$f":"IF(B29=\"\",\"\",C29*VLOOKUP(DétailsFacture6[[#This Row],[Référence]],Matrice!A:B,2,FALSE))","v":""}]
[null,null,null,{"$f":"IF(B30=\"\",\"\",C30*VLOOKUP(DétailsFacture6[[#This Row],[Référence]],Matrice!A:B,2,FALSE))","v":""}]
[null,null,null,{"$f":"IF(B31=\"\",\"\",C31*VLOOKUP(DétailsFacture6[[#This Row],[Référence]],Matrice!A:B,2,FALSE))","v":""}]
[null,null,null,{"$f":"IF(B32=\"\",\"\",C32*VLOOKUP(DétailsFacture6[[#This Row],[Référence]],Matrice!A:B,2,FALSE))","v":""}]
[null,null,null,{"$f":"IF(B33=\"\",\"\",C33*VLOOKUP(DétailsFacture6[[#This Row],[Référence]],Matrice!A:B,2,FALSE))","v":""}]
[null,null,null,{"$f":"IF(B34=\"\",\"\",C34*VLOOKUP(DétailsFacture6[[#This Row],[Référence]],Matrice!A:B,2,FALSE))","v":""}]
[null,null,null,{"$f":"IF(B35=\"\",\"\",C35*VLOOKUP(DétailsFacture6[[#This Row],[Référence]],Matrice!A:B,2,FALSE))","v":""}]
[null,null,null,{"$f":"IF(B36=\"\",\"\",C36*VLOOKUP(DétailsFacture6[[#This Row],[Référence]],Matrice!A:B,2,FALSE))","v":""}]
[null,null,null,{"$f":"IF(B37=\"\",\"\",C37*VLOOKUP(DétailsFacture6[[#This Row],[Référence]],Matrice!A:B,2,FALSE))","v":""}]
[null,null,null,{"$f":"IF(B38=\"\",\"\",C38*VLOOKUP(DétailsFacture6[[#This Row],[Référence]],Matrice!A:B,2,FALSE))","v":""}]
[null,null,null,{"$f":"IF(B39=\"\",\"\",C39*VLOOKUP(DétailsFacture6[[#This Row],[Référence]],Matrice!A:B,2,FALSE))","v":""}]
[null,null,null,{"$f":"IF(B40=\"\",\"\",C40*VLOOKUP(DétailsFacture6[[#This Row],[Référence]],Matrice!A:B,2,FALSE))","v":""}]
[null,null,null,{"$f":"IF(B41=\"\",\"\",C41*VLOOKUP(DétailsFacture6[[#This Row],[Référence]],Matrice!A:B,2,FALSE))","v":""}]
[null,null,null,{"$f":"IF(B42=\"\",\"\",C42*VLOOKUP(DétailsFacture6[[#This Row],[Référence]],Matrice!A:B,2,FALSE))","v":""}]
[null,null,null,{"$f":"IF(B43=\"\",\"\",C43*VLOOKUP(DétailsFacture6[[#This Row],[Référence]],Matrice!A:B,2,FALSE))","v":""}]
[null,null,null,{"$f":"IF(B44=\"\",\"\",C44*VLOOKUP(DétailsFacture6[[#This Row],[Référence]],Matrice!A:B,2,FALSE))","v":""}]
[null,null,null,{"$f":"IF(B45=\"\",\"\",C45*VLOOKUP(DétailsFacture6[[#This Row],[Référence]],Matrice!A:B,2,FALSE))","v":""}]
[null,null,null,{"$f":"IF(B46=\"\",\"\",C46*VLOOKUP(DétailsFacture6[[#This Row],[Référence]],Matrice!A:B,2,FALSE))","v":""}]
[null,null,null,{"$f":"IF(B47=\"\",\"\",C47*VLOOKUP(DétailsFacture6[[#This Row],[Référence]],Matrice!A:B,2,FALSE))","v":""}]
[null,null,null,{"$f":"IF(B48=\"\",\"\",C48*VLOOKUP(DétailsFacture6[[#This Row],[Référence]],Matrice!A:B,2,FALSE))","v":""}]
[null,null,null,{"$f":"IF(B49=\"\",\"\",C49*VLOOKUP(DétailsFacture6[[#This Row],[Référence]],Matrice!A:B,2,FALSE))","v":""}]
[null,null,null,{"$f":"IF(B50=\"\",\"\",C50*VLOOKUP(DétailsFacture6[[#This Row],[Référence]],Matrice!A:B,2,FALSE))","v":""}]
[null,null,null,{"$f":"IF(B51=\"\",\"\",C51*VLOOKUP(DétailsFacture6[[#This Row],[Référence]],Matrice!A:B,2,FALSE))","v":""}]
[null,null,null,{"$f":"IF(B52=\"\",\"\",C52*VLOOKUP(DétailsFacture6[[#This Row],[Référence]],Matrice!A:B,2,FALSE))","v":""}]
[null,null,null,{"$f":"IF(B53=\"\",\"\",C53*VLOOKUP(DétailsFacture6[[#This Row],[Référence]],Matrice!A:B,2,FALSE))","v":""}]
[null,null,null,{"$f":"IF(B54=\"\",\"\",C54*VLOOKUP(DétailsFacture6[[#This Row],[Référence]],Matrice!A:B,2,FALSE))","v":""}]
[null,null,null,{"$f":"IF(B55=\"\",\"\",C55*VLOOKUP(DétailsFacture6[[#This Row],[Référence]],Matrice!A:B,2,FALSE))","v":""}]
[null,null,null,{"$f":"IF(B56=\"\",\"\",C56*VLOOKUP(DétailsFacture6[[#This Row],[Référence]],Matrice!A:B,2,FALSE))","v":""}]
[null,null,null,{"$f":"IF(B57=\"\",\"\",C57*VLOOKUP(DétailsFacture6[[#This Row],[Référence]],Matrice!A:B,2,FALSE))","v":""}]
[null,null,null,{"$f":"IF(B58=\"\",\"\",C58*VLOOKUP(DétailsFacture6[[#This Row],[Référence]],Matrice!A:B,2,FALSE))","v":""}]
[null,null,null,{"$f":"IF(B59=\"\",\"\",C59*VLOOKUP(DétailsFacture6[[#This Row],[Référence]],Matrice!A:B,2,FALSE))","v":""}]
[null,null,null,{"$f":"IF(B60=\"\",\"\",C60*VLOOKUP(DétailsFacture6[[#This Row],[Référence]],Matrice!A:B,2,FALSE))","v":""}]
[null,null,null,{"$f":"IF(B61=\"\",\"\",C61*VLOOKUP(DétailsFacture6[[#This Row],[Référence]],Matrice!A:B,2,FALSE))","v":""}]
[null,null,null,{"$f":"IF(B62=\"\",\"\",C62*VLOOKUP(DétailsFacture6[[#This Row],[Référence]],Matrice!A:B,2,FALSE))","v":""}]
[null,null,null,{"$f":"IF(B63=\"\",\"\",C63*VLOOKUP(DétailsFacture6[[#This Row],[Référence]],Matrice!A:B,2,FALSE))","v":""}]
[null,null,null,{"$f":"IF(B64=\"\",\"\",C64*VLOOKUP(DétailsFacture6[[#This Row],[Référence]],Matrice!A:B,2,FALSE))","v":""}]
[null,null,null,{"$f":"IF(B65=\"\",\"\",C65*VLOOKUP(DétailsFacture6[[#This Row],[Référence]],Matrice!A:B,2,FALSE))","v":""}]
[null,null,null,{"$f":"IF(B66=\"\",\"\",C66*VLOOKUP(DétailsFacture6[[#This Row],[Référence]],Matrice!A:B,2,FALSE))","v":""}]
[null,null,null,{"$f":"IF(B67=\"\",\"\",C67*VLOOKUP(DétailsFacture6[[#This Row],[Référence]],Matrice!A:B,2,FALSE))","v":""}]
[null,null,null,{"$f":"IF(B68=\"\",\"\",C68*VLOOKUP(DétailsFacture6[[#This Row],[Référence]],Matrice!A:B,2,FALSE))","v":""}]
[null,null,null,{"$f":"IF(B69=\"\",\"\",C69*VLOOKUP(DétailsFacture6[[#This Row],[Référence]],Matrice!A:B,2,FALSE))","v":""}]
[null,null,null,{"$f":"IF(B70=\"\",\"\",C70*VLOOKUP(DétailsFacture6[[#This Row],[Référence]],Matrice!A:B,2,FALSE))","v":""}]
[null,null,null,{"$f":"IF(B71=\"\",\"\",C71*VLOOKUP(DétailsFacture6[[#This Row],[Référence]],Matrice!A:B,2,FALSE))","v":""}]
[null,null,null,{"$f":"IF(B72=\"\",\"\",C72*VLOOKUP(DétailsFacture6[[#This Row],[Référence]],Matrice!A:B,2,FALSE))","v":""}]
[null,null,null,{"$f":"IF(B73=\"\",\"\",C73*VLOOKUP(DétailsFacture6[[#This Row],[Référence]],Matrice!A:B,2,FALSE))","v":""}]
[null,null,null,{"$f":"IF(B74=\"\",\"\",C74*VLOOKUP(DétailsFacture6[[#This Row],[Référence]],Matrice!A:B,2,FALSE))","v":""}]
[null,null,null,{"$f":"IF(B75=\"\",\"\",C75*VLOOKUP(DétailsFacture6[[#This Row],[Référence]],Matrice!A:B,2,FALSE))","v":""}]
[null,null,null,{"$f":"IF(B76=\"\",\"\",C76*VLOOKUP(DétailsFacture6[[#This Row],[Référence]],Matrice!A:B,2,FALSE))","v":""}]
[null,null,null,{"$f":"IF(B77=\"\",\"\",C77*VLOOKUP(DétailsFacture6[[#This Row],[Référence]],Matrice!A:B,2,FALSE))","v":""}]
[null,null,null,{"$f":"IF(B78=\"\",\"\",C78*VLOOKUP(DétailsFacture6[[#This Row],[Référence]],Matrice!A:B,2,FALSE))","v":""}]
[null,null,null,{"$f":"IF(B79=\"\",\"\",C79*VLOOKUP(DétailsFacture6[[#This Row],[Référence]],Matrice!A:B,2,FALSE))","v":""}]
[null,null,null,{"$f":"IF(B80=\"\",\"\",C80*VLOOKUP(DétailsFacture6[[#This Row],[Référence]],Matrice!A:B,2,FALSE))","v":""}]
[null,null,null,{"$f":"IF(B81=\"\",\"\",C81*VLOOKUP(DétailsFacture6[[#This Row],[Référence]],Matrice!A:B,2,FALSE))","v":""}]
[null,null,null,{"$f":"IF(B82=\"\",\"\",C82*VLOOKUP(DétailsFacture6[[#This Row],[Référence]],Matrice!A:B,2,FALSE))","v":""}]
[null,null,null,{"$f":"IF(B83=\"\",\"\",C83*VLOOKUP(DétailsFacture6[[#This Row],[Référence]],Matrice!A:B,2,FALSE))","v":""}]
[null,null,null,{"$f":"IF(B84=\"\",\"\",C84*VLOOKUP(DétailsFacture6[[#This Row],[Référence]],Matrice!A:B,2,FALSE))","v":""}]
[null,null,null,{"$f":"IF(B85=\"\",\"\",C85*VLOOKUP(DétailsFacture6[[#This Row],[Référence]],Matrice!A:B,2,FALSE))","v":""}]

{"sheet":"23","index":2,"n_rows":85,"n_cols":5,"rows_kept":85,"cut":false,"hidden":false,"merged":[]}
[]
[null,"Vendredi 23 juillet"]
[null,"Référence","Nbre palettes","Quantité (colis)","Traçabilité"]
[null,"CEA 250x12 ZR",2,{"$f":"IF(B4=\"\",\"\",C4*VLOOKUP(DétailsFacture7[[#This Row],[Référence]],Matrice!A:B,2,FALSE))","v":256},16629102]
[null,"CEA 200x20 0,99€",12,{"$f":"IF(B5=\"\",\"\",C5*VLOOKUP(DétailsFacture7[[#This Row],[Référence]],Matrice!A:B,2,FALSE))","v":1296},16629208]
[null,"CEA Panaché 250x12 PDP",1,{"$f":"IF(B6=\"\",\"\",C6*VLOOKUP(DétailsFacture7[[#This Row],[Référence]],Matrice!A:B,2,FALSE))","v":128},16629105]
[null,"CEA 500x10 ZR",5,{"$f":"IF(B7=\"\",\"\",C7*VLOOKUP(DétailsFacture7[[#This Row],[Référence]],Matrice!A:B,2,FALSE))","v":360},16629102]
[null,"CEA 1kg compléxé",4,{"$f":"IF(B8=\"\",\"\",C8*VLOOKUP(DétailsFacture7[[#This Row],[Référence]],Matrice!A:B,2,FALSE))","v":1600},16629102]
[null,"CEA 1kg compléxé LIDL",2,{"$f":"IF(B9=\"\",\"\",C9*VLOOKUP(DétailsFacture7[[#This Row],[Référence]],Matrice!A:B,2,FALSE))","v":960},16629202]
[null,"GRP RGL Extra 10kg 1/2 coupe",4,{"$f":"IF(B10=\"\",\"\",C10*VLOOKUP(DétailsFacture7[[#This Row],[Référence]],Matrice!A:B,2,FALSE))","v":224},16629320]
[null,"GRP RGL Extra 10kg",12,{"$f":"IF(B11=\"\",\"\",C11*VLOOKUP(DétailsFacture7[[#This Row],[Référence]],Matrice!A:B,2,FALSE))","v":672},16629320]
[null,"CER Mélangées 350x10 ZR 2€50",4,{"$f":"IF(B12=\"\",\"\",C12*VLOOKUP(DétailsFacture7[[#This Row],[Référence]],Matrice!A:B,2,FALSE))","v":288},16629106]
[null,"CER Mélangées 1kg compléxé LIDL",3,{"$f":"IF(B13=\"\",\"\",C13*VLOOKUP(DétailsFacture7[[#This Row],[Référence]],Matrice!A:B,2,FALSE))","v":1440},16629106]
[null,"CER Mélangées 1kg compléxé",2,{"$f":"IF(B14=\"\",\"\",C14*VLOOKUP(DétailsFacture7[[#This Row],[Référence]],Matrice!A:B,2,FALSE))","v":800},16629106]
[null,"CER 4Kg Industrie 20-30 mm",1,{"$f":"IF(B15=\"\",\"\",C15*VLOOKUP(DétailsFacture7[[#This Row],[Référence]],Matrice!A:B,2,FALSE))","v":144},16629301]
[null,null,null,{"$f":"IF(B16=\"\",\"\",C16*VLOOKUP(DétailsFacture7[[#This Row],[Référence]],Matrice!A:B,2,FALSE))","v":""}]
[null,null,null,{"$f":"IF(B17=\"\",\"\",C17*VLOOKUP(DétailsFacture7[[#This Row],[Référence]],Matrice!A:B,2,FALSE))","v":""}]
[null,null,null,{"$f":"IF(B18=\"\",\"\",C18*VLOOKUP(DétailsFacture7[[#This Row],[Référence]],Matrice!A:B,2,FALSE))","v":""}]
[null,null,null,{"$f":"IF(B19=\"\",\"\",C19*VLOOKUP(DétailsFacture7[[#This Row],[Référence]],Matrice!A:B,2,FALSE))","v":""}]
[null,null,null,{"$f":"IF(B20=\"\",\"\",C20*VLOOKUP(DétailsFacture7[[#This Row],[Référence]],Matrice!A:B,2,FALSE))","v":""}]
[null,null,null,{"$f":"IF(B21=\"\",\"\",C21*VLOOKUP(DétailsFacture7[[#This Row],[Référence]],Matrice!A:B,2,FALSE))","v":""}]
[null,null,null,{"$f":"IF(B22=\"\",\"\",C22*VLOOKUP(DétailsFacture7[[#This Row],[Référence]],Matrice!A:B,2,FALSE))","v":""}]
[null,null,null,{"$f":"IF(B23=\"\",\"\",C23*VLOOKUP(DétailsFacture7[[#This Row],[Référence]],Matrice!A:B,2,FALSE))","v":""}]
[null,null,null,{"$f":"IF(B24=\"\",\"\",C24*VLOOKUP(DétailsFacture7[[#This Row],[Référence]],Matrice!A:B,2,FALSE))","v":""}]
[null,null,null,{"$f":"IF(B25=\"\",\"\",C25*VLOOKUP(DétailsFacture7[[#This Row],[Référence]],Matrice!A:B,2,FALSE))","v":""}]
[null,null,null,{"$f":"IF(B26=\"\",\"\",C26*VLOOKUP(DétailsFacture7[[#This Row],[Référence]],Matrice!A:B,2,FALSE))","v":""}]
[null,null,null,{"$f":"IF(B27=\"\",\"\",C27*VLOOKUP(DétailsFacture7[[#This Row],[Référence]],Matrice!A:B,2,FALSE))","v":""}]
[null,null,null,{"$f":"IF(B28=\"\",\"\",C28*VLOOKUP(DétailsFacture7[[#This Row],[Référence]],Matrice!A:B,2,FALSE))","v":""}]
[null,null,null,{"$f":"IF(B29=\"\",\"\",C29*VLOOKUP(DétailsFacture7[[#This Row],[Référence]],Matrice!A:B,2,FALSE))","v":""}]
[null,null,null,{"$f":"IF(B30=\"\",\"\",C30*VLOOKUP(DétailsFacture7[[#This Row],[Référence]],Matrice!A:B,2,FALSE))","v":""}]
[null,null,null,{"$f":"IF(B31=\"\",\"\",C31*VLOOKUP(DétailsFacture7[[#This Row],[Référence]],Matrice!A:B,2,FALSE))","v":""}]
[null,null,null,{"$f":"IF(B32=\"\",\"\",C32*VLOOKUP(DétailsFacture7[[#This Row],[Référence]],Matrice!A:B,2,FALSE))","v":""}]
[null,null,null,{"$f":"IF(B33=\"\",\"\",C33*VLOOKUP(DétailsFacture7[[#This Row],[Référence]],Matrice!A:B,2,FALSE))","v":""}]
[null,null,null,{"$f":"IF(B34=\"\",\"\",C34*VLOOKUP(DétailsFacture7[[#This Row],[Référence]],Matrice!A:B,2,FALSE))","v":""}]
[null,null,null,{"$f":"IF(B35=\"\",\"\",C35*VLOOKUP(DétailsFacture7[[#This Row],[Référence]],Matrice!A:B,2,FALSE))","v":""}]
[null,null,null,{"$f":"IF(B36=\"\",\"\",C36*VLOOKUP(DétailsFacture7[[#This Row],[Référence]],Matrice!A:B,2,FALSE))","v":""}]
[null,null,null,{"$f":"IF(B37=\"\",\"\",C37*VLOOKUP(DétailsFacture7[[#This Row],[Référence]],Matrice!A:B,2,FALSE))","v":""}]
[null,null,null,{"$f":"IF(B38=\"\",\"\",C38*VLOOKUP(DétailsFacture7[[#This Row],[Référence]],Matrice!A:B,2,FALSE))","v":""}]
[null,null,null,{"$f":"IF(B39=\"\",\"\",C39*VLOOKUP(DétailsFacture7[[#This Row],[Référence]],Matrice!A:B,2,FALSE))","v":""}]
[null,null,null,{"$f":"IF(B40=\"\",\"\",C40*VLOOKUP(DétailsFacture7[[#This Row],[Référence]],Matrice!A:B,2,FALSE))","v":""}]
[null,null,null,{"$f":"IF(B41=\"\",\"\",C41*VLOOKUP(DétailsFacture7[[#This Row],[Référence]],Matrice!A:B,2,FALSE))","v":""}]
[null,null,null,{"$f":"IF(B42=\"\",\"\",C42*VLOOKUP(DétailsFacture7[[#This Row],[Référence]],Matrice!A:B,2,FALSE))","v":""}]
[null,null,null,{"$f":"IF(B43=\"\",\"\",C43*VLOOKUP(DétailsFacture7[[#This Row],[Référence]],Matrice!A:B,2,FALSE))","v":""}]
[null,null,null,{"$f":"IF(B44=\"\",\"\",C44*VLOOKUP(DétailsFacture7[[#This Row],[Référence]],Matrice!A:B,2,FALSE))","v":""}]
[null,null,null,{"$f":"IF(B45=\"\",\"\",C45*VLOOKUP(DétailsFacture7[[#This Row],[Référence]],Matrice!A:B,2,FALSE))","v":""}]
[null,null,null,{"$f":"IF(B46=\"\",\"\",C46*VLOOKUP(DétailsFacture7[[#This Row],[Référence]],Matrice!A:B,2,FALSE))","v":""}]
[null,null,null,{"$f":"IF(B47=\"\",\"\",C47*VLOOKUP(DétailsFacture7[[#This Row],[Référence]],Matrice!A:B,2,FALSE))","v":""}]
[null,null,null,{"$f":"IF(B48=\"\",\"\",C48*VLOOKUP(DétailsFacture7[[#This Row],[Référence]],Matrice!A:B,2,FALSE))","v":""}]
[null,null,null,{"$f":"IF(B49=\"\",\"\",C49*VLOOKUP(DétailsFacture7[[#This Row],[Référence]],Matrice!A:B,2,FALSE))","v":""}]
[null,null,null,{"$f":"IF(B50=\"\",\"\",C50*VLOOKUP(DétailsFacture7[[#This Row],[Référence]],Matrice!A:B,2,FALSE))","v":""}]
[null,null,null,{"$f":"IF(B51=\"\",\"\",C51*VLOOKUP(DétailsFacture7[[#This Row],[Référence]],Matrice!A:B,2,FALSE))","v":""}]
[null,null,null,{"$f":"IF(B52=\"\",\"\",C52*VLOOKUP(DétailsFacture7[[#This Row],[Référence]],Matrice!A:B,2,FALSE))","v":""}]
[null,null,null,{"$f":"IF(B53=\"\",\"\",C53*VLOOKUP(DétailsFacture7[[#This Row],[Référence]],Matrice!A:B,2,FALSE))","v":""}]
[null,null,null,{"$f":"IF(B54=\"\",\"\",C54*VLOOKUP(DétailsFacture7[[#This Row],[Référence]],Matrice!A:B,2,FALSE))","v":""}]
[null,null,null,{"$f":"IF(B55=\"\",\"\",C55*VLOOKUP(DétailsFacture7[[#This Row],[Référence]],Matrice!A:B,2,FALSE))","v":""}]
[null,null,null,{"$f":"IF(B56=\"\",\"\",C56*VLOOKUP(DétailsFacture7[[#This Row],[Référence]],Matrice!A:B,2,FALSE))","v":""}]
[null,null,null,{"$f":"IF(B57=\"\",\"\",C57*VLOOKUP(DétailsFacture7[[#This Row],[Référence]],Matrice!A:B,2,FALSE))","v":""}]
[null,null,null,{"$f":"IF(B58=\"\",\"\",C58*VLOOKUP(DétailsFacture7[[#This Row],[Référence]],Matrice!A:B,2,FALSE))","v":""}]
[null,null,null,{"$f":"IF(B59=\"\",\"\",C59*VLOOKUP(DétailsFacture7[[#This Row],[Référence]],Matrice!A:B,2,FALSE))","v":""}]
[null,null,null,{"$f":"IF(B60=\"\",\"\",C60*VLOOKUP(DétailsFacture7[[#This Row],[Référence]],Matrice!A:B,2,FALSE))","v":""}]
[null,null,null,{"$f":"IF(B61=\"\",\"\",C61*VLOOKUP(DétailsFacture7[[#This Row],[Référence]],Matrice!A:B,2,FALSE))","v":""}]
[null,null,null,{"$f":"IF(B62=\"\",\"\",C62*VLOOKUP(DétailsFacture7[[#This Row],[Référence]],Matrice!A:B,2,FALSE))","v":""}]
[null,null,null,{"$f":"IF(B63=\"\",\"\",C63*VLOOKUP(DétailsFacture7[[#This Row],[Référence]],Matrice!A:B,2,FALSE))","v":""}]
[null,null,null,{"$f":"IF(B64=\"\",\"\",C64*VLOOKUP(DétailsFacture7[[#This Row],[Référence]],Matrice!A:B,2,FALSE))","v":""}]
[null,null,null,{"$f":"IF(B65=\"\",\"\",C65*VLOOKUP(DétailsFacture7[[#This Row],[Référence]],Matrice!A:B,2,FALSE))","v":""}]
[null,null,null,{"$f":"IF(B66=\"\",\"\",C66*VLOOKUP(DétailsFacture7[[#This Row],[Référence]],Matrice!A:B,2,FALSE))","v":""}]
[null,null,null,{"$f":"IF(B67=\"\",\"\",C67*VLOOKUP(DétailsFacture7[[#This Row],[Référence]],Matrice!A:B,2,FALSE))","v":""}]
[null,null,null,{"$f":"IF(B68=\"\",\"\",C68*VLOOKUP(DétailsFacture7[[#This Row],[Référence]],Matrice!A:B,2,FALSE))","v":""}]
[null,null,null,{"$f":"IF(B69=\"\",\"\",C69*VLOOKUP(DétailsFacture7[[#This Row],[Référence]],Matrice!A:B,2,FALSE))","v":""}]
[null,null,null,{"$f":"IF(B70=\"\",\"\",C70*VLOOKUP(DétailsFacture7[[#This Row],[Référence]],Matrice!A:B,2,FALSE))","v":""}]
[null,null,null,{"$f":"IF(B71=\"\",\"\",C71*VLOOKUP(DétailsFacture7[[#This Row],[Référence]],Matrice!A:B,2,FALSE))","v":""}]
[null,null,null,{"$f":"IF(B72=\"\",\"\",C72*VLOOKUP(DétailsFacture7[[#This Row],[Référence]],Matrice!A:B,2,FALSE))","v":""}]
[null,null,null,{"$f":"IF(B73=\"\",\"\",C73*VLOOKUP(DétailsFacture7[[#This Row],[Référence]],Matrice!A:B,2,FALSE))","v":""}]
[null,null,null,{"$f":"IF(B74=\"\",\"\",C74*VLOOKUP(DétailsFacture7[[#This Row],[Référence]],Matrice!A:B,2,FALSE))","v":""}]
[null,null,null,{"$f":"IF(B75=\"\",\"\",C75*VLOOKUP(DétailsFacture7[[#This Row],[Référence]],Matrice!A:B,2,FALSE))","v":""}]
[null,null,null,{"$f":"IF(B76=\"\",\"\",C76*VLOOKUP(DétailsFacture7[[#This Row],[Référence]],Matrice!A:B,2,FALSE))","v":""}]
[null,null,null,{"$f":"IF(B77=\"\",\"\",C77*VLOOKUP(DétailsFacture7[[#This Row],[Référence]],Matrice!A:B,2,FALSE))","v":""}]
[null,null,null,{"$f":"IF(B78=\"\",\"\",C78*VLOOKUP(DétailsFacture7[[#This Row],[Référence]],Matrice!A:B,2,FALSE))","v":""}]
[null,null,null,{"$f":"IF(B79=\"\",\"\",C79*VLOOKUP(DétailsFacture7[[#This Row],[Référence]],Matrice!A:B,2,FALSE))","v":""}]
[null,null,null,{"$f":"IF(B80=\"\",\"\",C80*VLOOKUP(DétailsFacture7[[#This Row],[Référence]],Matrice!A:B,2,FALSE))","v":""}]
[null,null,null,{"$f":"IF(B81=\"\",\"\",C81*VLOOKUP(DétailsFacture7[[#This Row],[Référence]],Matrice!A:B,2,FALSE))","v":""}]
[null,null,null,{"$f":"IF(B82=\"\",\"\",C82*VLOOKUP(DétailsFacture7[[#This Row],[Référence]],Matrice!A:B,2,FALSE))","v":""}]
[null,null,null,{"$f":"IF(B83=\"\",\"\",C83*VLOOKUP(DétailsFacture7[[#This Row],[Référence]],Matrice!A:B,2,FALSE))","v":""}]
[null,null,null,{"$f":"IF(B84=\"\",\"\",C84*VLOOKUP(DétailsFacture7[[#This Row],[Référence]],Matrice!A:B,2,FALSE))","v":""}]
[null,null,null,{"$f":"IF(B85=\"\",\"\",C85*VLOOKUP(DétailsFacture7[[#This Row],[Référence]],Matrice!A:B,2,FALSE))","v":""}]

{"sheet":"24","index":3,"n_rows":85,"n_cols":5,"rows_kept":85,"cut":false,"hidden":false,"merged":[]}
[]
[null,"Samedi 24 juillet"]
[null,"Référence","Nbre palettes","Quantité (colis)","Traçabilité"]
[null,"CEA 250x12 ZR",2,{"$f":"IF(B4=\"\",\"\",C4*VLOOKUP(DétailsFacture8[[#This Row],[Référence]],Matrice!A:B,2,FALSE))","v":256},16629102]
[null,"CEA 200x20 0,99€",12,{"$f":"IF(B5=\"\",\"\",C5*VLOOKUP(DétailsFacture8[[#This Row],[Référence]],Matrice!A:B,2,FALSE))","v":1296},16629208]
[null,"CEA Panaché 250x12 PDP",1,{"$f":"IF(B6=\"\",\"\",C6*VLOOKUP(DétailsFacture8[[#This Row],[Référence]],Matrice!A:B,2,FALSE))","v":128},16629105]
[null,"CEA 500x10 ZR",5,{"$f":"IF(B7=\"\",\"\",C7*VLOOKUP(DétailsFacture8[[#This Row],[Référence]],Matrice!A:B,2,FALSE))","v":360},16629102]
[null,"CEA 1kg compléxé",4,{"$f":"IF(B8=\"\",\"\",C8*VLOOKUP(DétailsFacture8[[#This Row],[Référence]],Matrice!A:B,2,FALSE))","v":1600},16629102]
[null,"CEA 1kg compléxé LIDL",2,{"$f":"IF(B9=\"\",\"\",C9*VLOOKUP(DétailsFacture8[[#This Row],[Référence]],Matrice!A:B,2,FALSE))","v":960},16629202]
[null,"GRP RGL Extra 10kg 1/2 coupe",4,{"$f":"IF(B10=\"\",\"\",C10*VLOOKUP(DétailsFacture8[[#This Row],[Référence]],Matrice!A:B,2,FALSE))","v":224},16629320]
[null,"GRP RGL Extra 10kg",12,{"$f":"IF(B11=\"\",\"\",C11*VLOOKUP(DétailsFacture8[[#This Row],[Référence]],Matrice!A:B,2,FALSE))","v":672},16629320]
[null,"CER Mélangées 350x10 ZR 2€50",4,{"$f":"IF(B12=\"\",\"\",C12*VLOOKUP(DétailsFacture8[[#This Row],[Référence]],Matrice!A:B,2,FALSE))","v":288},16629106]
[null,"CER Mélangées 1kg compléxé LIDL",3,{"$f":"IF(B13=\"\",\"\",C13*VLOOKUP(DétailsFacture8[[#This Row],[Référence]],Matrice!A:B,2,FALSE))","v":1440},16629106]
[null,"CER Mélangées 1kg compléxé",2,{"$f":"IF(B14=\"\",\"\",C14*VLOOKUP(DétailsFacture8[[#This Row],[Référence]],Matrice!A:B,2,FALSE))","v":800},16629106]
[null,"CER 4Kg Industrie 20-30 mm",1,{"$f":"IF(B15=\"\",\"\",C15*VLOOKUP(DétailsFacture8[[#This Row],[Référence]],Matrice!A:B,2,FALSE))","v":144},16629301]
[null,null,null,{"$f":"IF(B16=\"\",\"\",C16*VLOOKUP(DétailsFacture8[[#This Row],[Référence]],Matrice!A:B,2,FALSE))","v":""}]
[null,null,null,{"$f":"IF(B17=\"\",\"\",C17*VLOOKUP(DétailsFacture8[[#This Row],[Référence]],Matrice!A:B,2,FALSE))","v":""}]
[null,null,null,{"$f":"IF(B18=\"\",\"\",C18*VLOOKUP(DétailsFacture8[[#This Row],[Référence]],Matrice!A:B,2,FALSE))","v":""}]
[null,null,null,{"$f":"IF(B19=\"\",\"\",C19*VLOOKUP(DétailsFacture8[[#This Row],[Référence]],Matrice!A:B,2,FALSE))","v":""}]
[null,null,null,{"$f":"IF(B20=\"\",\"\",C20*VLOOKUP(DétailsFacture8[[#This Row],[Référence]],Matrice!A:B,2,FALSE))","v":""}]
[null,null,null,{"$f":"IF(B21=\"\",\"\",C21*VLOOKUP(DétailsFacture8[[#This Row],[Référence]],Matrice!A:B,2,FALSE))","v":""}]
[null,null,null,{"$f":"IF(B22=\"\",\"\",C22*VLOOKUP(DétailsFacture8[[#This Row],[Référence]],Matrice!A:B,2,FALSE))","v":""}]
[null,null,null,{"$f":"IF(B23=\"\",\"\",C23*VLOOKUP(DétailsFacture8[[#This Row],[Référence]],Matrice!A:B,2,FALSE))","v":""}]
[null,null,null,{"$f":"IF(B24=\"\",\"\",C24*VLOOKUP(DétailsFacture8[[#This Row],[Référence]],Matrice!A:B,2,FALSE))","v":""}]
[null,null,null,{"$f":"IF(B25=\"\",\"\",C25*VLOOKUP(DétailsFacture8[[#This Row],[Référence]],Matrice!A:B,2,FALSE))","v":""}]
[null,null,null,{"$f":"IF(B26=\"\",\"\",C26*VLOOKUP(DétailsFacture8[[#This Row],[Référence]],Matrice!A:B,2,FALSE))","v":""}]
[null,null,null,{"$f":"IF(B27=\"\",\"\",C27*VLOOKUP(DétailsFacture8[[#This Row],[Référence]],Matrice!A:B,2,FALSE))","v":""}]
[null,null,null,{"$f":"IF(B28=\"\",\"\",C28*VLOOKUP(DétailsFacture8[[#This Row],[Référence]],Matrice!A:B,2,FALSE))","v":""}]
[null,null,null,{"$f":"IF(B29=\"\",\"\",C29*VLOOKUP(DétailsFacture8[[#This Row],[Référence]],Matrice!A:B,2,FALSE))","v":""}]
[null,null,null,{"$f":"IF(B30=\"\",\"\",C30*VLOOKUP(DétailsFacture8[[#This Row],[Référence]],Matrice!A:B,2,FALSE))","v":""}]
[null,null,null,{"$f":"IF(B31=\"\",\"\",C31*VLOOKUP(DétailsFacture8[[#This Row],[Référence]],Matrice!A:B,2,FALSE))","v":""}]
[null,null,null,{"$f":"IF(B32=\"\",\"\",C32*VLOOKUP(DétailsFacture8[[#This Row],[Référence]],Matrice!A:B,2,FALSE))","v":""}]
[null,null,null,{"$f":"IF(B33=\"\",\"\",C33*VLOOKUP(DétailsFacture8[[#This Row],[Référence]],Matrice!A:B,2,FALSE))","v":""}]
[null,null,null,{"$f":"IF(B34=\"\",\"\",C34*VLOOKUP(DétailsFacture8[[#This Row],[Référence]],Matrice!A:B,2,FALSE))","v":""}]
[null,null,null,{"$f":"IF(B35=\"\",\"\",C35*VLOOKUP(DétailsFacture8[[#This Row],[Référence]],Matrice!A:B,2,FALSE))","v":""}]
[null,null,null,{"$f":"IF(B36=\"\",\"\",C36*VLOOKUP(DétailsFacture8[[#This Row],[Référence]],Matrice!A:B,2,FALSE))","v":""}]
[null,null,null,{"$f":"IF(B37=\"\",\"\",C37*VLOOKUP(DétailsFacture8[[#This Row],[Référence]],Matrice!A:B,2,FALSE))","v":""}]
[null,null,null,{"$f":"IF(B38=\"\",\"\",C38*VLOOKUP(DétailsFacture8[[#This Row],[Référence]],Matrice!A:B,2,FALSE))","v":""}]
[null,null,null,{"$f":"IF(B39=\"\",\"\",C39*VLOOKUP(DétailsFacture8[[#This Row],[Référence]],Matrice!A:B,2,FALSE))","v":""}]
[null,null,null,{"$f":"IF(B40=\"\",\"\",C40*VLOOKUP(DétailsFacture8[[#This Row],[Référence]],Matrice!A:B,2,FALSE))","v":""}]
[null,null,null,{"$f":"IF(B41=\"\",\"\",C41*VLOOKUP(DétailsFacture8[[#This Row],[Référence]],Matrice!A:B,2,FALSE))","v":""}]
[null,null,null,{"$f":"IF(B42=\"\",\"\",C42*VLOOKUP(DétailsFacture8[[#This Row],[Référence]],Matrice!A:B,2,FALSE))","v":""}]
[null,null,null,{"$f":"IF(B43=\"\",\"\",C43*VLOOKUP(DétailsFacture8[[#This Row],[Référence]],Matrice!A:B,2,FALSE))","v":""}]
[null,null,null,{"$f":"IF(B44=\"\",\"\",C44*VLOOKUP(DétailsFacture8[[#This Row],[Référence]],Matrice!A:B,2,FALSE))","v":""}]
[null,null,null,{"$f":"IF(B45=\"\",\"\",C45*VLOOKUP(DétailsFacture8[[#This Row],[Référence]],Matrice!A:B,2,FALSE))","v":""}]
[null,null,null,{"$f":"IF(B46=\"\",\"\",C46*VLOOKUP(DétailsFacture8[[#This Row],[Référence]],Matrice!A:B,2,FALSE))","v":""}]
[null,null,null,{"$f":"IF(B47=\"\",\"\",C47*VLOOKUP(DétailsFacture8[[#This Row],[Référence]],Matrice!A:B,2,FALSE))","v":""}]
[null,null,null,{"$f":"IF(B48=\"\",\"\",C48*VLOOKUP(DétailsFacture8[[#This Row],[Référence]],Matrice!A:B,2,FALSE))","v":""}]
[null,null,null,{"$f":"IF(B49=\"\",\"\",C49*VLOOKUP(DétailsFacture8[[#This Row],[Référence]],Matrice!A:B,2,FALSE))","v":""}]
[null,null,null,{"$f":"IF(B50=\"\",\"\",C50*VLOOKUP(DétailsFacture8[[#This Row],[Référence]],Matrice!A:B,2,FALSE))","v":""}]
[null,null,null,{"$f":"IF(B51=\"\",\"\",C51*VLOOKUP(DétailsFacture8[[#This Row],[Référence]],Matrice!A:B,2,FALSE))","v":""}]
[null,null,null,{"$f":"IF(B52=\"\",\"\",C52*VLOOKUP(DétailsFacture8[[#This Row],[Référence]],Matrice!A:B,2,FALSE))","v":""}]
[null,null,null,{"$f":"IF(B53=\"\",\"\",C53*VLOOKUP(DétailsFacture8[[#This Row],[Référence]],Matrice!A:B,2,FALSE))","v":""}]
[null,null,null,{"$f":"IF(B54=\"\",\"\",C54*VLOOKUP(DétailsFacture8[[#This Row],[Référence]],Matrice!A:B,2,FALSE))","v":""}]
[null,null,null,{"$f":"IF(B55=\"\",\"\",C55*VLOOKUP(DétailsFacture8[[#This Row],[Référence]],Matrice!A:B,2,FALSE))","v":""}]
[null,null,null,{"$f":"IF(B56=\"\",\"\",C56*VLOOKUP(DétailsFacture8[[#This Row],[Référence]],Matrice!A:B,2,FALSE))","v":""}]
[null,null,null,{"$f":"IF(B57=\"\",\"\",C57*VLOOKUP(DétailsFacture8[[#This Row],[Référence]],Matrice!A:B,2,FALSE))","v":""}]
[null,null,null,{"$f":"IF(B58=\"\",\"\",C58*VLOOKUP(DétailsFacture8[[#This Row],[Référence]],Matrice!A:B,2,FALSE))","v":""}]
[null,null,null,{"$f":"IF(B59=\"\",\"\",C59*VLOOKUP(DétailsFacture8[[#This Row],[Référence]],Matrice!A:B,2,FALSE))","v":""}]
[null,null,null,{"$f":"IF(B60=\"\",\"\",C60*VLOOKUP(DétailsFacture8[[#This Row],[Référence]],Matrice!A:B,2,FALSE))","v":""}]
[null,null,null,{"$f":"IF(B61=\"\",\"\",C61*VLOOKUP(DétailsFacture8[[#This Row],[Référence]],Matrice!A:B,2,FALSE))","v":""}]
[null,null,null,{"$f":"IF(B62=\"\",\"\",C62*VLOOKUP(DétailsFacture8[[#This Row],[Référence]],Matrice!A:B,2,FALSE))","v":""}]
[null,null,null,{"$f":"IF(B63=\"\",\"\",C63*VLOOKUP(DétailsFacture8[[#This Row],[Référence]],Matrice!A:B,2,FALSE))","v":""}]
[null,null,null,{"$f":"IF(B64=\"\",\"\",C64*VLOOKUP(DétailsFacture8[[#This Row],[Référence]],Matrice!A:B,2,FALSE))","v":""}]
[null,null,null,{"$f":"IF(B65=\"\",\"\",C65*VLOOKUP(DétailsFacture8[[#This Row],[Référence]],Matrice!A:B,2,FALSE))","v":""}]
[null,null,null,{"$f":"IF(B66=\"\",\"\",C66*VLOOKUP(DétailsFacture8[[#This Row],[Référence]],Matrice!A:B,2,FALSE))","v":""}]
[null,null,null,{"$f":"IF(B67=\"\",\"\",C67*VLOOKUP(DétailsFacture8[[#This Row],[Référence]],Matrice!A:B,2,FALSE))","v":""}]
[null,null,null,{"$f":"IF(B68=\"\",\"\",C68*VLOOKUP(DétailsFacture8[[#This Row],[Référence]],Matrice!A:B,2,FALSE))","v":""}]
[null,null,null,{"$f":"IF(B69=\"\",\"\",C69*VLOOKUP(DétailsFacture8[[#This Row],[Référence]],Matrice!A:B,2,FALSE))","v":""}]
[null,null,null,{"$f":"IF(B70=\"\",\"\",C70*VLOOKUP(DétailsFacture8[[#This Row],[Référence]],Matrice!A:B,2,FALSE))","v":""}]
[null,null,null,{"$f":"IF(B71=\"\",\"\",C71*VLOOKUP(DétailsFacture8[[#This Row],[Référence]],Matrice!A:B,2,FALSE))","v":""}]
[null,null,null,{"$f":"IF(B72=\"\",\"\",C72*VLOOKUP(DétailsFacture8[[#This Row],[Référence]],Matrice!A:B,2,FALSE))","v":""}]
[null,null,null,{"$f":"IF(B73=\"\",\"\",C73*VLOOKUP(DétailsFacture8[[#This Row],[Référence]],Matrice!A:B,2,FALSE))","v":""}]
[null,null,null,{"$f":"IF(B74=\"\",\"\",C74*VLOOKUP(DétailsFacture8[[#This Row],[Référence]],Matrice!A:B,2,FALSE))","v":""}]
[null,null,null,{"$f":"IF(B75=\"\",\"\",C75*VLOOKUP(DétailsFacture8[[#This Row],[Référence]],Matrice!A:B,2,FALSE))","v":""}]
[null,null,null,{"$f":"IF(B76=\"\",\"\",C76*VLOOKUP(DétailsFacture8[[#This Row],[Référence]],Matrice!A:B,2,FALSE))","v":""}]
[null,null,null,{"$f":"IF(B77=\"\",\"\",C77*VLOOKUP(DétailsFacture8[[#This Row],[Référence]],Matrice!A:B,2,FALSE))","v":""}]
[null,null,null,{"$f":"IF(B78=\"\",\"\",C78*VLOOKUP(DétailsFacture8[[#This Row],[Référence]],Matrice!A:B,2,FALSE))","v":""}]
[null,null,null,{"$f":"IF(B79=\"\",\"\",C79*VLOOKUP(DétailsFacture8[[#This Row],[Référence]],Matrice!A:B,2,FALSE))","v":""}]
[null,null,null,{"$f":"IF(B80=\"\",\"\",C80*VLOOKUP(DétailsFacture8[[#This Row],[Référence]],Matrice!A:B,2,FALSE))","v":""}]
[null,null,null,{"$f":"IF(B81=\"\",\"\",C81*VLOOKUP(DétailsFacture8[[#This Row],[Référence]],Matrice!A:B,2,FALSE))","v":""}]
[null,null,null,{"$f":"IF(B82=\"\",\"\",C82*VLOOKUP(DétailsFacture8[[#This Row],[Référence]],Matrice!A:B,2,FALSE))","v":""}]
[null,null,null,{"$f":"IF(B83=\"\",\"\",C83*VLOOKUP(DétailsFacture8[[#This Row],[Référence]],Matrice!A:B,2,FALSE))","v":""}]
[null,null,null,{"$f":"IF(B84=\"\",\"\",C84*VLOOKUP(DétailsFacture8[[#This Row],[Référence]],Matrice!A:B,2,FALSE))","v":""}]
[null,null,null,{"$f":"IF(B85=\"\",\"\",C85*VLOOKUP(DétailsFacture8[[#This Row],[Référence]],Matrice!A:B,2,FALSE))","v":""}]

{"sheet":"Matrice","index":4,"n_rows":51,"n_cols":2,"rows_kept":51,"cut":false,"hidden":false,"merged":[]}
["CEA 250x12",128]
["CEA 250x12 ZR",128]
["CEA 250x12 LIDL",128]
["CEA 250x12 1€50",128]
["CEA Panaché 250x12",128]
["CEA Panaché 250x12 PDP",128]
["CEA 500x10",72]
["CEA 500x10 ZR",72]
["CER 250x12",128]
["CER 250X12 LIDL",128]
["CER 250x12 ZR",128]
["CER 400x10",72]
["CER 400x10 2€",72]
["CER 500x10",72]
["CER 500X10 LIDL",72]
["CER 500x10 ZR",72]
["CER Mélangées 350x10",72]
["CER Mélangées 350x10 ZR",70]
["CER Mélangées 350x10 ZR 2€50",72]
["CER Mélangées 350x10 ZR 2€50 +20%",72]
["CER Mélangées 350x10 LIDL",72]
["CER Mélangées 350x10 ZR LIDL",72]
["CEA 200x20 0,99€",108]
["CER 200x20 0,99€",108]
["CER 200x20 MMP",108]
["CER 200x20 ECO+",108]
["CER 1kg compléxé",400]
["CER 1kg compléxé LIDL",400]
["CER 4kg",144]
["CER 4kg compléxé",144]
["CEA 1kg compléxé",400]
["CEA 1kg compléxé LIDL",480]
["CEA 4kg  ",144]
["CEA 4kg compléxé",144]
["CER Mélangées 1kg compléxé",400]
["CER Mélangées 1kg compléxé LIDL",480]
["CER Mélangées 4kg",144]
["CER Mélangées 4Kg compléxé",144]
["CER Mélangées 4kg compléxé ZR",144]
["CAO 1kg compléxé LIDL",480]
["CAO 4kg Extra",144]
["CAO 4 kg compléxé",144]
["CEJ 4kg Extra",144]
["GRP 5Kg Compléxée",112]
["GRP RGL Extra 10kg",56]
["GRP RGL Extra 10kg 1/2 coupe",56]
["GRP 14 pièces",56]
["GRP 10kg Ecoserre",56]
["GRP 10KG LIDL",56]
["CER 4Kg Industrie 20-30 mm",144]
["CER 4Kg Industrie 23-27 mm",144]